Cogmind - Beta 12 @@@ ROGUE MODE // 2023.04.02 @ 16:26:58 Player: kyerz Result: Destroyed by YI-UF0 with YI-UF0's Doublenader Performance ------------- Evolutions (0) 0 Regions Visited (2) 400 Robots Destroyed (15) 75 Value Destroyed (383) 383 Prototype IDs (2) 40 Alien Tech Used (0) 0 Bonus (0) 0 TOTAL SCORE: 898 Bonus ------- None Cogmind --------- Core Integrity 0/250 Matter 300/300 Energy 100/100 System Corruption 7% Temperature Cool (0) Movement Walking (400) Ox4 Location -10/Mines Parts ------- > --- POWER (1) -------- (None) > --- PROPULSION (2) --- Aluminum Leg > --- UTILITY (2) ------ High-capacity Storage Unit Propulsion Shielding > --- WEAPON (2) ------- (None) > --- INVENTORY (20) --- Light Nuclear Core Light Treads Wheel Wheel Flight Unit Large Storage Unit High-capacity Storage Unit High-capacity Matter Pod (91) Experimental Sensor Array Thief Drone Bay Light Assault Rifle Light Assault Rifle Light Assault Rifle Light Cannon Grenade Launcher Welding Torch Peak State ------------ > --- POWER ------------ Light Nuclear Core > --- PROPULSION ------- Aluminum Leg Aluminum Leg > --- UTILITY ---------- High-capacity Storage Unit Propulsion Shielding > --- WEAPON ----------- Particle Gun Light Assault Rifle > --- INVENTORY -------- Light Nuclear Core Light Treads Wheel Wheel Flight Unit Large Storage Unit High-capacity Storage Unit High-capacity Matter Pod Experimental Sensor Array Thief Drone Bay Light Assault Rifle Light Assault Rifle Light Assault Rifle Light Cannon Grenade Launcher [Rating: 13] Favorites ----------- Power Light Nuclear Core Engine Light Ion Engine Power Core Light Nuclear Core Propulsion Aluminum Leg Leg Aluminum Leg Utility High-capacity Storage Unit Device Heat Sink Storage High-capacity Storage Unit Protection Propulsion Shielding Weapon Light Assault Rifle Energy Gun Particle Gun Ballistic Gun Light Assault Rifle Build | -11 -10 -10 ------- Run | Jun Mat Min Slots Evolved . | . . . Power . | . . . Propulsion . | . . . Utility . | . . . Weapon . | . . . Parts Attached 15 | 6 4 5 Power 2 | 1 . 1 Engine 1 | 1 . . Core 1 | . . 1 Reactor . | . . . Propulsion 6 | 2 2 2 Treads . | . . . Leg 6 | 2 2 2 Wheel . | . . . Hover . | . . . Flight . | . . . Utility 3 | 1 1 1 Device 1 | 1 . . Storage 1 | . 1 . Processor . | . . . Hackware . | . . . Protection 1 | . . 1 Artifact . | . . . Weapon 4 | 2 1 1 Energy Gun 2 | 1 . 1 Energy Cannon . | . . . Ballistic Gun 2 | 1 1 . Ballistic Cannon . | . . . Launcher . | . . . Special Weapon . | . . . Impact Weapon . | . . . Slashing Weapon . | . . . Piercing Weapon . | . . . Special Melee Weapon . | . . . Unidentified Prototypes . | . . . Parts Lost 9 | . 1 8 Power 2 | . 1 1 Propulsion 3 | . . 3 Utility 1 | . . 1 Weapon 3 | . . 3 Highest Loss Streak 4 | . 1 4 To Critical Strikes . | . . . Average Slot Usage (%) 89 | . 92 87 Engine 2 | . 6 . Core 7 | . . 13 Leg 27 | . 28 26 Device 6 | . 14 1 Storage 14 | . 14 14 Protection 2 | . . 3 Energy Gun 13 | . 14 13 Ballistic Gun 13 | . 14 13 Naked Turns . | . . . Heaviest Build 50 | 8 48 50 Greatest Support 20 | 20 20 20 Greatest Overweight (x) 4 | . 2 4 Average Overweight (x) 1 | . 1 2 Largest Inventory Capacity 20 | 5 20 20 Average Capacity 19 | 5 19 20 Most Carried 16 | 3 10 16 Average Carried 9 | 2 5 13 Final Capacity 20 | 5 20 20 Final Carried 16 | 3 10 16 Class Distribution -------------------- 69% | Mutant 30% | Scavenger-Mutant Dominant Class ---------------- Mutant | -10/Materials Scavenger-Mutant | -10/Mines Resources | -11 -10 -10 ----------- Run | Jun Mat Min Matter Collected 584 | 266 122 196 Remotely . | . . . Salvage Created 444 | 33 285 126 Parts 23 | 1 14 8 Haulers Intercepted . | . . . Recyclers Shooed 1 | . . 1 Parts Field Recycled . | . . . Retrieved Matter . | . . . Parts Self-Destructed . | . . . Prevented . | . . . Kills | -11 -10 -10 ------- Run | Jun Mat Min Combat Hostiles Destroyed 14 | 1 9 4 Guns 14 | 1 9 4 Classes Destroyed 3 | 1 1 1 Worker 1 | . . 1 Swarmer 5 | . 3 2 Grunt 9 | 1 6 2 Best Kill Streak 3 | 1 3 1 Combat Bots Only 3 | 1 3 1 Max Kills in Single Turn 1 | 1 1 1 Gunslinging . | . . . Exploded . | . . . Melee . | . . . Uniques/NPCs Destroyed . | . . . Combat | -11 -10 -10 -------- Run | Jun Mat Min Damage Taken 1190 | 10 463 717 Core 255 | . 58 197 Absorbed by Shields . | . . . Redirected to Shielding 15 | . . 15 Core Remaining (%) 100 | 100 . . Volleys Fired 67 | 2 33 32 Largest 2 | 2 2 2 Hottest 85 | 70 70 85 Shots Fired 115 | 4 67 44 Gun 115 | 4 67 44 Cannon . | . . . Launcher . | . . . Special . | . . . Kinetic 67 | 2 33 32 Thermal 48 | 2 34 12 Explosive . | . . . Electromagnetic . | . . . Robot Hit Streak 8 | 2 6 8 Robot Miss Streak 3 | 1 3 3 Penetration Max . | . . . Secondary Targets 2 | . 1 1 Max Gunslinging Chain 1 | . 1 1 Shots Hit Robots 68 | 3 40 25 Core Hits 29 | 1 17 11 Critical Kills . | . . . Critical Parts Destroyed . | . . . Critical Strikes 1 | . 1 . Burn 1 | . 1 . Melee Attacks . | . . . Impact . | . . . Slashing . | . . . Piercing . | . . . Sneak Attacks . | . . . Combat Hostiles . | . . . Follow-up Attacks . | . . . Damage Inflicted 769 | 41 464 264 Guns 769 | 41 464 264 Cannons . | . . . Explosions . | . . . Melee . | . . . Ramming . | . . . Kinetic 376 | 15 189 172 Thermal 393 | 26 275 92 Explosive . | . . . Electromagnetic . | . . . Impact . | . . . Slashing . | . . . Piercing . | . . . Highest Corruption 7 | . 7 7 Average Corruption 6 | . 5 7 Corruption Purged . | . . . Corruption Blocked . | . . . Effects 50 | . 8 42 Message Errors 12 | . 1 11 Matter Fused 5 | . 1 4 Heat Flow Errors 6 | . . 6 Energy Discharges 11 | . 2 9 Data Loss (minor) 3 | . 1 2 Data Loss (major) 7 | . 2 5 Misfires 3 | . 1 2 Alerts 2 | . . 2 Weapon Failures 1 | . . 1 Overload Shots . | . . . Overflow Damage . | . . . Projectiles . | . . . Explosions . | . . . Melee . | . . . Knockbacks . | . . . Impact . | . . . Kinetic . | . . . Secondary . | . . . Self-Inflicted Damage . | . . . Shots . | . . . Rammed . | . . . Targets Rammed 1 | . 1 . Kicked 1 | . 1 . Crushed . | . . . Highest Temperature 497 | 24 2 497 Average Temperature 122 | 13 2 132 Received Heat Transfer 360 | 6 177 177 Effects 4 | . . 4 Shutdowns 2 | . . 2 Matter Decay 1 | . . 1 Damage (minor) 1 | . . 1 Siege Activations . | . . . Robots Corrupted . | . . . Combat Hostiles . | . . . Parts Fried . | . . . Impact Corruptions . | . . . Robots Melted . | . . . Combat Hostiles . | . . . Parts Melted 3 | . 3 . Heat Transferred 1184 | 74 888 222 Parts Sabotaged . | . . . Parts Stolen . | . . . Parts Stripped . | . . . Power Chain Reactions . | . . . Missiles Intercepted . | . . . Alert | -11 -10 -10 ------- Run | Jun Mat Min Peak Influence 118 | 20 118 50 Initial 27 | . 13 27 Average 27 | 4 31 26 Maximum Alert Level . | . . . Low Security (%) 100 | 100 100 100 Level 1 . | . . . Level 2 . | . . . Level 3 . | . . . Level 4 . | . . . Level 5 . | . . . High Security . | . . . Max Security . | . . . Squads Dispatched 4 | . 4 . Investigation 2 | . 2 . Extermination . | . . . Reinforcement 2 | . 2 . Assault . | . . . Garrison . | . . . Intercept . | . . . Searches Triggered . | . . . Construction Impeded . | . . . Haulers Reinforced . | . . . Active Scanning Responses . | . . . Cargo Convoy Interrupts . | . . . Stealth | -11 -10 -10 --------- Run | Jun Mat Min Distress Signals 1 | . 1 . Communications Jammed . | . . . Distress Signals . | . . . Times Spotted 19 | 1 12 6 Peak Tracking Total 4 | 1 4 3 Tactical Retreats 2 | . 1 1 Traps | -11 -10 -10 ------- Run | Jun Mat Min Traps Triggered 4 | . 4 . Indirectly . | . . . Trap Hack Attempts . | . . . Triggered . | . . . Disarmed . | . . . Reprogrammed . | . . . Reused . | . . . Traps Extracted . | . . . Installed . | . . . Triggered . | . . . Machines | -11 -10 -10 ---------- Run | Jun Mat Min Machines Disabled . | . . . Max in Single Turn . | . . . Machines Repaired . | . . . Machines Sabotaged . | . . . Overloaded Fab Kills . | . . . Hacking | -11 -10 -10 --------- Run | Jun Mat Min Machines Accessed 4 | . 3 1 Terminals 3 | . 3 . Fabricators . | . . . Repair Stations . | . . . Recycling Units . | . . . Scanalyzers . | . . . Garrison Access . | . . . Total Hacks 8 | . 7 1 Successful 3 | . 2 1 Failed 5 | . 5 . Catastrophic 2 | . 2 . Database Lockouts . | . . . Manual 1 | . 1 . Terminals 7 | . 7 . Fabricators . | . . . Repair Stations . | . . . Recycling Units . | . . . Scanalyzers . | . . . Garrison Access . | . . . Terminal Hacks 3 | . 2 1 Record 1 | . 1 . Prototype ID Bank 1 | . 1 . Open Door 1 | . . 1 Fabricator Hacks . | . . . Repair Station Hacks . | . . . Recycling Unit Hacks . | . . . Scanalyzer . | . . . Garrison Access Hacks . | . . . Unauthorized Hacks . | . . . Terminals . | . . . Fabricators . | . . . Repair Stations . | . . . Recycling Units . | . . . Scanalyzers . | . . . Garrison Access . | . . . Data Cores Recovered . | . . . Used . | . . . Hacking Detections 3 | . 3 . Full Trace Events 1 | . 1 . Feedback Events 1 | . 1 . Corruption 1 | . 1 . Feedback Blocked . | . . . Robot Schematics Acquired . | . . . Robots Built . | . . . Authchips . | . . . Time . | . . . Total Robot Build Rating . | . . . Part Schematics Acquired . | . . . Parts Built . | . . . Authchips . | . . . Time . | . . . Total Part Build Rating . | . . . Parts Repaired . | . . . Time . | . . . Parts Recycled . | . . . Recycled Matter . | . . . Retrieved Matter . | . . . Retrieved Components . | . . . Parts Scanalyzed . | . . . Part Schematics Acquired . | . . . Parts Damaged . | . . . Bothacking | -11 -10 -10 ------------ Run | Jun Mat Min Used RIF Installer . | . . . Robots Hacked . | . . . Non-combat . | . . . Combat . | . . . Robot Hacks Applied . | . . . Relay Couplers Released . | . . . Fabnet Peak Effective % . | . . . Robots Rewired . | . . . Allies Hacked . | . . . Hacks Repelled . | . . . Allies | -11 -10 -10 -------- Run | Jun Mat Min Total Allies . | . . . Largest Group . | . . . Highest-Rated Group . | . . . Highest-Rated Ally . | . . . Total Orders . | . . . Ally Attacks . | . . . Total Damage . | . . . Kills . | . . . Allies Corrupted . | . . . Allies Melted . | . . . Intel | -11 -10 -10 ------- Run | Jun Mat Min Robot Analysis Total . | . . . Derelict Logs Recovered 1 | . . 1 Drone Launches . | . . . Drone Recoveries . | . . . Exploration | -11 -10 -10 ------------- Run | Jun Mat Min Turns Passed 2271 | 89 879 1303 Spaces Moved 767 | 67 246 454 Core 13 | 13 . . Treads . | . . . Legs 754 | 54 246 454 Wheels . | . . . Hover . | . . . Flight . | . . . Fastest Speed 50 | 50 120 260 Average Speed 246 | 106 256 262 Slowest Speed 400 | 120 260 400 Overloaded Moves . | . . . Propulsion Burnouts . | . . . Robots Hopped . | . . . Cave-ins Triggered . | . . . Exploration Rate (%) 45 | 7 39 90 Regions Visited 2 Branch Regions 1 Pre-discovered Areas 1 | . . 1 Known Exits Taken . | . . . Unknown Exits Taken 2 | 1 1 . Scrap Searched 3 | . . 3 Spaces Dug . | . . . Terrain Destroyed . | . . . Melee . | . . . Projectile . | . . . AOE . | . . . Terrain Rammed . | . . . Walls Destroyed . | . . . Machines Disabled . | . . . Actions | -11 -10 -10 --------- Run | Jun Mat Min Total 1036 | 78 430 528 Wait 166 | . 138 28 Move 765 | 66 245 454 Hop . | . . . Pick Up 20 | 4 7 9 Fast Attach 9 | 5 2 2 Attach 5 | 1 1 3 Detach . | . . . Swap 1 | . 1 . Drop 2 | . 2 . Fire 67 | 2 33 32 Melee . | . . . Ram . | . . . Kick 1 | . 1 . Crush . | . . . Escape Stasis . | . . . Rewire . | . . . Trap . | . . . Miscellaneous . | . . . Route ------- -11/Junkyard -10/Materials (discovered 2 exits: [*Mat] / *Min) -10/Mines (discovered 2 exits: [*Mat x2]) History --------- Turn | Location | Event 2 | -11/Junkyard | Met Revision 17 62 | -11/Junkyard | Discovered new exit (range 8) 90 | -11/Junkyard | Entered Materials 310 | -10/Materials | Build established: Mutant 541 | -10/Materials | Discovered new exit (range 15) 745 | -10/Materials | Discovered new exit (range 14) 969 | -10/Materials | Entered Mines 1074 | -10/Mines | Core integrity fell below 50% 1092 | -10/Mines | Lost 3 parts (1n1u1w) 1215 | -10/Mines | Discovered new exit (range 8) 1237 | -10/Mines | Found the Drone Emporium 1246 | -10/Mines | Found Prototype Device 1322 | -10/Mines | YI-UF0 nonchalantly dropped a Grenade Launcher on the ground 1408 | -10/Mines | Build established: Scavenger-Mutant 1414 | -10/Mines | Found a damaged Exp. Sensor Array with a note attached 1419 | -10/Mines | Found Prototype Device 1608 | -10/Mines | Learned location of Storage (-7) 1901 | -10/Mines | Discovered new exit (range 13) 2052 | -10/Mines | Build established: Mutant 2101 | -10/Mines | Learned 2 Materials zone layouts 2264 | -10/Mines | Core integrity fell below 20% 2272 | -10/Mines | Destroyed by YI-UF0 with YI-UF0's Doublenader Last Messages --------------- Data stored: Materials zone layouts (x2). 02102_ GVQZG/TUZCC0QYLUQMUHEEXM 02156_ System corrupted: Substantial component data lost. 02158_ T-07 Excavator is excavating. 02174_ System corrupted: Energy discharge (-59). 02175_ T-07 Excavator is excavating. 02202_ TVZ JX2TSWFAENSODZMVQ 02219_ System corrupted: Substantial component data lost. 02238_ System corrupted: Matter fused (-8). 02240_ The unstable cave ceiling collapses. 02255_ System corrupted: Energy discharge (-49). 02255_ Lgt. Assault Rifle destroyed. 02255_ Lgt. Nuclear Core destroyed. 02256_ YI-UF0 mumbles something. 02259_ The unstable cave ceiling collapses. 02268_ U-05 Engineer lays Concrete. 02270_ System corrupted: Component data lost. 02270_ U-05 Engineer lays Concrete. 02272_ Particle Gun destroyed. 02272_ Aluminum Leg destroyed. Map ----- +----------------------------------------------------+ | #???????????????????????????????## ##??????# # | | #???????????????????????????????# ##?????# #### | | #???????????????????????????????# ##????# #??? | | ????????????????????????######### ######=#??? | | ???????????????????????## #??# | | ??????????????????????## ### ###?? | | ????????????????????### ######### ##?# #???# | | ???????????????????? # #???????####??# #?## | | ?????????????????### #?????????????# ## | | ???????????# ##### ##?????????##### | | ???????????# ##?????????##""## | | ???????????##### ###?????????#" # # | | ??????????????# # #?????????#" # | | ??????????????# ???????????#" < | | ?????????????## ##???????????#" #X | | ????????????## #????????????##""## | | ????########## ##?????????????####### | | ????# #????????????????????# | | ????# u ????####?????????????# | | ????# #### g #???## ##????????????# | | ????# #??## ##??# #????????????## | | ????# #???# #### #??????????????## | | ????# #???# ### # ## #?????????????????# | | #???# #???# #???# ##?????????????????# | | ##??# #???# #???# ##????????????????? | | #??# #???# #???# @ ##???????????????? | | ##?# #???# #???# #???????????????? | | ### ##### ###?# # #???????????????? | | ## #?## ## ##???????????????? | | ## #??#### #????????????????? | | #### #?????## ### t #????????????????? | | ##### #??????###?## ##????????????????? | | """ #???????????## ##????????????????? | | """ #???????????## #####????######??? | | ######### """ #???????????# ##?### #?? | | ????????# #???????????# ### #??? | | ????????########???????????# #??? | | ???????????????????????????## ## #### #??? | | ????????????????????????????# ##### #???????? | | ????????????????????????????####???#######???????? | | ?????????????????????????????????????????????????? | | ?????????????????????????????????????????????????? | | ?????????????????????????????????????????????????? | | ?????????????????????????????????????????????????? | | | | | | | | | | | | | +----------------------------------------------------+ Best States ------------- Heat Dissipation 35 Energy Generation 14 Energy Capacity 160 Matter Stores 300 Matter Capacity 300 Sight Range 16 Terrain Scan Density 10 Propulsion Shielding 33 Evasion (%) 55 Item Schematics ----------------- None Robot Schematics ------------------ None Fabricated ------------ Nothing Alien Tech Used ----------------- None Achievements -------------- None Challenges ------------ None Game ------ Seed PropulsionLightpackSword Manual? 0 Play Time 00:17:30 Cumulative 3.9 hours Start 2023.04.02 @ 16:08:19 End 2023.04.02 @ 16:26:58 Sessions 1 Manual Loads 0 Difficulty Rogue Special Mode None Game No. 3 Rogue 3 Adventurer 0 Explorer 0 Win Type - Total 0 Types 0/0/0/0/0/0/0/0/0 Lore% 10 Gallery% 5 Achievement% 16 Wizard Run 0 Options --------- ASCII 0 Keyboard 0 Movement Numpad Keybinds 0 Fullscreen 1 Font 24/Smallcaps Map View 76x50 Tactical HUD 1 Map Filters NONE Filters NONE Steam 1 RUN: c4a563d2-804a-41a1-b578-4d5d4c9fe364